fUST/lending_fUST_20241110
["ID","MTS","AMOUNT","RATE_DAILY","PERIOD"]
[341825718,1731243045644,-2366.305193,0.000295,7]
[341825719,1731243045653,-2366.305193,0.000295,7]
[341825720,1731243045663,-2366.305193,0.000295,7]
[341825721,1731243045673,-224.0,0.000295,7]
[341825722,1731243045683,-152.98556512,0.000295,7]
[341825723,1731243045693,-152.98556512,0.000295,7]
[341825724,1731243045703,-152.98556512,0.000295,7]
[341825725,1731243045714,-152.98556512,0.000295,7]
[341825726,1731243045723,-152.98556512,0.000295,7]
[341825727,1731243045734,-152.98556512,0.000295,7]
[341825728,1731243045744,-152.98556512,0.000295,7]
[341825729,1731243045754,-152.98556512,0.000295,7]
[341825730,1731243045764,-152.98,0.000295,7]
[341825731,1731243045774,-158.86962532,0.000295,7]
[341825732,1731243045784,-158.86962532,0.000295,7]
[341825733,1731243045794,-158.86962532,0.000295,7]
[341825734,1731243045805,-158.86962532,0.000295,7]
[341825735,1731243045815,-158.86962532,0.000295,7]
[341825736,1731243045824,-158.86962532,0.000295,7]
[341825737,1731243045834,-158.86962532,0.000295,7]
[341825738,1731243045843,-158.86962532,0.000295,7]
[341825739,1731243045853,-158.86962532,0.000295,7]
[341825740,1731243045863,-158.86962532,0.000295,7]
[341825741,1731243045872,-158.86962532,0.000295,7]
[341825742,1731243045883,-158.86962532,0.000295,7]
[341825743,1731243045893,-158.86,0.000295,7]
[341825744,1731243045903,-669.422275,0.000295,7]
[341825745,1731243045914,-151.0,0.000295,7]
[341825746,1731243045923,-669.422278,0.000295,7]
[341825747,1731243045932,-2922.13107949,0.00029501,2]
[341825748,1731243045942,-1006.294535,0.0002954,7]
[341825749,1731243045951,-1006.294535,0.0002954,7]
[341825750,1731243045962,-1504.508038,0.0002954,7]
[341825751,1731243045972,-151.0,0.0002954,2]
[341825752,1731243045983,-1191.517808,0.0002954,7]
[341825753,1731243045996,-1504.508038,0.0002954,7]
[341825754,1731243046012,-1191.517808,0.0002954,7]
[341825755,1731243046028,-2020.904124,0.0002954,7]
[341825756,1731243046042,-2020.904124,0.0002954,7]
[341825757,1731243046057,-2491.249918,0.0002954,7]
[341825758,1731243046070,-2491.249918,0.0002954,7]
[341825761,1731243046089,-153.0,0.00029583,2]
[341825763,1731243046103,-153.0,0.00029583,2]
[341825766,1731243046116,-153.0,0.00029583,2]
[341825768,1731243046131,-3399.721799,0.00029596,7]
[341825770,1731243046145,-3399.721799,0.00029596,7]
[341825773,1731243046162,-1324.847477,0.00029596,7]
[341825776,1731243046178,-1324.847477,0.00029596,7]
[341825778,1731243046192,-151.0,0.00029596,7]
[341825780,1731243046206,-3581.399054,0.00029596,7]
[341825782,1731243046217,-3581.399054,0.00029596,7]
[341825785,1731243046231,-160.0,0.00029599,10]
[341825787,1731243046245,-160.0,0.00029599,10]
[341825790,1731243046259,-151.0,0.00029599,7]
[341825792,1731243046273,-1073.536791,0.00029599,7]
[341825795,1731243046289,-1073.536791,0.00029599,7]
[341825797,1731243046305,-150.112233,0.000296,14]
[341825800,1731243046319,-150.112233,0.000296,20]
[341825802,1731243046331,-150.112233,0.000296,17]
[341825804,1731243046343,-151.0,0.000296,7]
[341825807,1731243046357,-255.409528,0.000296,7]
[341825809,1731243046374,-151.0,0.000296,7]
[341825812,1731243046389,-151.0,0.000296,7]
[341825814,1731243046401,-1112.360434,0.000296,7]
[341825816,1731243046416,-151.0,0.000296,7]
[341825819,1731243046431,-151.0,0.000296,7]
[341825821,1731243046443,-221.482255,0.000296,7]
[341825823,1731243046455,-324.526169,0.000296,7]
[341825825,1731243046468,-324.526169,0.000296,7]
[341825828,1731243046481,-324.526169,0.000296,7]
[341825830,1731243046494,-324.526169,0.000296,7]
[341825832,1731243046507,-356.136583,0.000296,7]
[341825835,1731243046520,-356.136583,0.000296,7]
[341825837,1731243046532,-356.136583,0.000296,7]
[341825839,1731243046544,-356.136583,0.000296,7]
[341825842,1731243046563,-151.0,0.000296,7]
[341825844,1731243046575,-151.0,0.000296,7]
[341825846,1731243046588,-151.0,0.000296,7]
[341825848,1731243046600,-151.0,0.000296,7]
[341825851,1731243046613,-935.088125,0.000296,7]
[341825853,1731243046624,-935.088125,0.000296,7]
[341825855,1731243046636,-964.073566,0.000296,7]
[341825857,1731243046648,-964.073566,0.000296,7]
[341825859,1731243046660,-590.590957,0.000296,7]
[341825861,1731243046673,-590.590957,0.000296,7]
[341825864,1731243046684,-590.590957,0.000296,7]
[341825866,1731243046695,-590.590957,0.000296,7]
[341825868,1731243046707,-152.319636,0.000296,7]
[341825870,1731243046718,-151.0,0.000296,7]
[341825872,1731243046729,-151.0,0.000296,7]
[341825874,1731243046740,-151.0,0.000296,7]
[341825877,1731243046752,-151.0,0.000296,7]
[341825879,1731243046766,-265.144848,0.000296,7]
[341825881,1731243046777,-265.144848,0.000296,7]
[341825883,1731243046789,-265.144848,0.000296,7]
[341825886,1731243046803,-265.144848,0.000296,7]
[341825888,1731243046815,-265.144848,0.000296,7]
[341825890,1731243046827,-265.144848,0.000296,7]
[341825893,1731243046839,-374.99876,0.000296,7]
[341825895,1731243046851,-374.99876,0.000296,7]
[341825897,1731243046864,-374.99876,0.000296,7]
[341825899,1731243046876,-374.99876,0.000296,7]
[341825901,1731243046888,-374.99876,0.000296,7]
[341825904,1731243046899,-151.0,0.000296,7]
[341825906,1731243046910,-374.99876,0.000296,7]
[341825908,1731243046921,-151.0,0.000296,7]
[341825910,1731243046933,-150.112233,0.000296,19]
[341825913,1731243046945,-830.649371,0.000296,7]
[341825915,1731243046956,-830.649371,0.000296,7]
[341825917,1731243046967,-150.112234,0.000296,19]
[341825919,1731243046978,-830.649371,0.000296,7]
[341825921,1731243046989,-830.649371,0.000296,7]
[341825923,1731243047001,-830.649371,0.000296,7]
[341825925,1731243047012,-830.649371,0.000296,7]
[341825928,1731243047023,-318.42235,0.000296,7]
[341825930,1731243047034,-318.42235,0.000296,7]
[341825932,1731243047044,-318.42235,0.000296,7]
[341825934,1731243047057,-318.42235,0.000296,7]
[341825936,1731243047068,-1073.536791,0.000296,7]
[341825938,1731243047079,-1073.536791,0.000296,7]
[341825940,1731243047090,-1006.294535,0.000296,7]
[341825943,1731243047101,-1006.294535,0.000296,7]
[341825945,1731243047112,-1006.294535,0.000296,7]
[341825946,1731243047124,-1073.536791,0.000296,7]
[341825947,1731243047134,-1073.536791,0.000296,7]
[341825948,1731243047144,-1006.294535,0.000296,7]
[341825949,1731243047155,-1006.294535,0.000296,7]
[341825950,1731243047166,-1006.294535,0.000296,7]
[341825951,1731243047177,-151.0,0.000296,7]
[341825953,1731243047188,-151.0,0.000296,7]
[341825955,1731243047200,-268.783875,0.000296,7]
[341825957,1731243047212,-268.783875,0.000296,7]
[341825960,1731243047223,-268.783875,0.000296,7]
[341825962,1731243047234,-268.783875,0.000296,7]
[341825964,1731243047246,-268.783875,0.000296,7]
[341825966,1731243047259,-268.783875,0.000296,7]
[341825969,1731243047271,-329.349078,0.000296,7]
[341825971,1731243047284,-329.349078,0.000296,7]
[341825973,1731243047297,-329.349078,0.000296,7]
[341825976,1731243047309,-329.349078,0.000296,7]
[341825978,1731243047321,-329.349078,0.000296,7]
[341825980,1731243047334,-329.349068,0.000296,7]
[341825983,1731243047346,-3218.147499,0.000296,7]
[341825985,1731243047359,-3218.147499,0.000296,7]
[341825987,1731243047371,-3218.147499,0.000296,7]
[341825990,1731243047383,-3218.147499,0.000296,7]
[341825992,1731243047396,-1504.508038,0.000296,7]
[341825994,1731243047409,-151.0,0.000296,2]
[341825996,1731243047421,-151.0,0.000296,2]
[341825999,1731243047435,-1191.517808,0.000296,7]
[341826001,1731243047448,-151.0,0.000296,2]
[341826003,1731243047460,-1504.50804,0.000296,7]
[341826006,1731243047473,-150.112234,0.000296,16]
[341826008,1731243047485,-1191.517805,0.000296,7]
[341826010,1731243047500,-3399.721799,0.000296,7]
[341826013,1731243047512,-3399.721807,0.000296,7]
[341826015,1731243047524,-1324.847477,0.000296,7]
[341826017,1731243047537,-1324.847472,0.000296,7]
[341826019,1731243047550,-2020.904124,0.000296,7]
[341826022,1731243047562,-2020.904124,0.000296,7]
[341826024,1731243047574,-2020.904124,0.000296,7]
[341826026,1731243047585,-2020.904124,0.000296,7]
[341826028,1731243047597,-2020.904124,0.000296,7]
[341826031,1731243047609,-2020.904124,0.000296,7]
[341826033,1731243047621,-151.0,0.000296,7]
[341826035,1731243047634,-3581.399054,0.000296,7]
[341826037,1731243047644,-2323.190952,0.000296,7]
[341826039,1731243047654,-2323.190952,0.000296,7]
[341826050,1731243047664,-2323.190952,0.000296,7]
[341826053,1731243047764,-3581.39904476,0.000296,7]
[341826055,1731243047774,-2323.190952,0.000296,7]
[341826057,1731243047783,-2323.190952,0.000296,7]
[341826059,1731243047792,-2323.19095,0.000296,7]
[341826061,1731243047804,-2491.249918,0.000296,7]
[341826063,1731243047813,-2491.249918,0.000296,7]
[341826066,1731243047823,-2491.249918,0.000296,7]
[341826067,1731243047832,-2491.249918,0.000296,7]
[341826070,1731243047842,-2491.249918,0.000296,7]
[341826071,1731243047851,-2491.249918,0.000296,7]
[341826073,1731243047861,-218.983821,0.000296,7]
[341826075,1731243047870,-218.983821,0.000296,7]
[341826077,1731243047880,-218.983821,0.000296,7]
[341826080,1731243047890,-218.983821,0.000296,7]
[341826082,1731243047899,-218.983821,0.000296,7]
[341826084,1731243047910,-218.983819,0.000296,7]
[341826086,1731243047919,-608809.69,0.000296,5]
[341826088,1731243047928,-500.0,0.00029673,5]
[341826090,1731243047937,-500.0,0.00029673,5]
[341826092,1731243047947,-500.0,0.00029673,5]
[341826094,1731243047956,-500.0,0.00029673,5]
[341826096,1731243047965,-500.0,0.00029673,5]
[341826098,1731243047975,-162.16837789,0.00029673,5]
[341826100,1731243047984,-500.0,0.00029673,5]
[341826102,1731243047994,-514.31656712,0.00029673,5]
[341826104,1731243048003,-500.0,0.00029673,5]
[341826106,1731243048012,-393.51889527,0.00029673,5]
[341826108,1731243048022,-500.0,0.00029673,5]
[341826110,1731243048031,-511.87876255,0.00029673,5]
[341826112,1731243048040,-500.0,0.00029673,5]
[341826114,1731243048053,-500.0,0.00029673,5]
[341826116,1731243048063,-500.0,0.00029673,5]
[341826118,1731243048073,-500.0,0.00029673,5]
[341826120,1731243048083,-507.70940403,0.00029673,5]
[341826122,1731243048093,-500.0,0.00029673,5]
[341826124,1731243048103,-500.0,0.00029673,5]
[341826126,1731243048113,-500.0,0.00029673,5]
[341826128,1731243048123,-500.0,0.00029673,5]
[341826130,1731243048133,-198.1045853,0.00029673,5]
[341826132,1731243048143,-214.797342,0.00029689,2]
[341826134,1731243048153,-2305.05016,0.000297,10]
[341826136,1731243048163,-216.436119,0.0002976,2]
[341826138,1731243048172,-390.0,0.00029776,14]
[341826140,1731243048182,-170.156892,0.00029811,2]
[341826142,1731243048191,-154.905,0.0002987,10]
[341826144,1731243048200,-160.74445562,0.00029876,10]
[341826146,1731243048210,-5000.0,0.00029877,30]
[341826148,1731243048219,-356.136583,0.00029877,7]
[341826150,1731243048229,-356.136583,0.00029877,7]
[341826152,1731243048238,-151.0,0.00029877,7]
[341826154,1731243048248,-151.0,0.00029877,7]
[341826156,1731243048258,-935.088125,0.00029877,7]
[341826158,1731243048269,-590.590957,0.00029877,7]
[341826160,1731243048279,-590.590957,0.00029877,7]
[341826162,1731243048288,-151.0,0.00029877,7]
[341826164,1731243048300,-151.0,0.00029877,7]
[341826166,1731243048310,-265.144848,0.00029877,7]
[341826168,1731243048320,-265.144848,0.00029877,7]
[341826170,1731243048330,-374.99876,0.00029877,7]
[341826172,1731243048340,-374.99876,0.00029877,7]
[341826174,1731243048350,-151.0,0.00029877,7]
[341826176,1731243048360,-830.649371,0.00029877,7]
[341826178,1731243048370,-830.649371,0.00029877,7]
[341826180,1731243048380,-318.42235,0.00029877,7]
[341826182,1731243048390,-318.42235,0.00029877,7]
[341826184,1731243048399,-1073.536791,0.00029877,7]
[341826186,1731243048408,-1006.294535,0.00029877,7]
[341826188,1731243048423,-1073.536791,0.00029877,7]
[341826190,1731243048433,-1006.294527,0.00029877,7]
[341826192,1731243048442,-151.0,0.00029877,7]
[341826194,1731243048451,-268.783875,0.00029877,7]
[341826196,1731243048463,-268.783875,0.00029877,7]
[341826198,1731243048472,-3218.147499,0.00029877,7]
[341826200,1731243048481,-3218.147499,0.00029877,7]
[341826202,1731243048491,-151.0,0.00029877,2]
[341826204,1731243048501,-2020.904124,0.00029877,7]
[341826206,1731243048510,-2020.904123,0.00029877,7]
[341826208,1731243048522,-2491.249918,0.00029877,7]
[341826210,1731243048531,-2491.249909,0.00029877,7]
[341826212,1731243048541,-151.0,0.00029887,6]
[341826214,1731243048550,-324.526169,0.000299,7]
[341826216,1731243048559,-324.526169,0.000299,7]
[341826218,1731243048568,-964.073566,0.000299,7]
[341826220,1731243048578,-11962.2221094,0.00029936,7]
[341826222,1731243048588,-151.0,0.00029936,7]
[341826224,1731243048597,-151.0,0.00029936,7]
[341826226,1731243048607,-151.0,0.00029936,7]
[341826228,1731243048617,-151.0,0.00029936,7]
[341826230,1731243048626,-255.085,0.00029941,2]
[341826232,1731243048636,-1128.0,0.00029941,2]
[341826233,1731243048646,-529.0,0.00029941,2]
[341826235,1731243048655,-2392.0,0.00029941,2]
[341826238,1731243048665,-1112.360434,0.00029999,7]
[341826240,1731243048675,-151.0,0.00029999,7]
[341826242,1731243048684,-265.144848,0.00029999,7]
[341826243,1731243048694,-265.144848,0.00029999,7]
[341826246,1731243048703,-374.99876,0.00029999,7]
[341826248,1731243048713,-374.99876,0.00029999,7]
[341826250,1731243048722,-830.649371,0.00029999,7]
[341826251,1731243048732,-830.649371,0.00029999,7]
[341826253,1731243048742,-160.78491638,0.00029999,10]
[341826255,1731243048751,-1073.536791,0.00029999,7]
[341826257,1731243048761,-1073.536782,0.00029999,7]
[341826259,1731243048771,-268.783875,0.00029999,7]
[341826261,1731243048780,-268.783875,0.00029999,7]
[341826264,1731243048791,-1000.0,0.0003,7]
[341826266,1731243048802,-990.05693843,0.0003,30]
[341826268,1731243048812,-2198.95885265,0.0003,2]
[341826270,1731243048822,-37173.6649,0.0003,15]
[341826272,1731243048831,-10293.3733346,0.0003,120]
[341826274,1731243048842,-151.0,0.0003,7]
[341826276,1731243048851,-151.0,0.0003,7]
[341826278,1731243048861,-151.0,0.0003,7]
[341826280,1731243048871,-151.0,0.0003,7]
[341826282,1731243048881,-151.0,0.0003,7]
[341826284,1731243048890,-151.0,0.0003,7]
[341826286,1731243048900,-151.0,0.0003,7]
[341826288,1731243048910,-196.334041,0.0003,7]
[341826290,1731243048920,-1112.360434,0.0003,7]
[341826292,1731243048930,-151.0,0.0003,7]
[341826294,1731243048940,-151.0,0.0003,7]
[341826296,1731243048950,-151.0,0.0003,7]
[341826298,1731243048960,-151.0,0.0003,7]
[341826300,1731243048969,-324.526169,0.0003,7]
[341826302,1731243048979,-324.526169,0.0003,7]
[341826304,1731243048989,-324.526169,0.0003,7]
[341826306,1731243048999,-324.526169,0.0003,7]
[341826308,1731243049008,-356.136583,0.0003,7]
[341826310,1731243049018,-356.136583,0.0003,7]
[341826312,1731243049028,-356.136583,0.0003,7]
[341826314,1731243049038,-356.136583,0.0003,7]
[341826316,1731243049047,-356.136583,0.0003,7]
[341826318,1731243049058,-356.136583,0.0003,7]
[341826320,1731243049067,-151.0,0.0003,120]
[341826322,1731243049077,-151.0,0.0003,7]
[341826324,1731243049087,-151.0,0.0003,7]
[341826326,1731243049098,-151.0,0.0003,7]
[341826328,1731243049107,-151.0,0.0003,7]
[341826331,1731243049118,-151.0,0.0003,7]
[341826333,1731243049128,-151.530765,0.0003,7]
[341826335,1731243049138,-935.088125,0.0003,7]
[341826337,1731243049148,-964.073566,0.0003,7]
[341826339,1731243049158,-935.088125,0.0003,7]
[341826340,1731243049167,-935.088125,0.0003,7]
[341826343,1731243049177,-151.0,0.0003,120]
[341826345,1731243049187,-964.073566,0.0003,7]
[341826347,1731243049197,-964.073566,0.0003,7]
[341826349,1731243049206,-590.590957,0.0003,7]
[341826351,1731243049216,-590.590957,0.0003,7]
[341826353,1731243049225,-590.590957,0.0003,7]
[341826355,1731243049235,-590.590957,0.0003,7]
[341826357,1731243049244,-590.590957,0.0003,7]
[341826359,1731243049254,-590.590957,0.0003,7]
[341826361,1731243049263,-151.0,0.0003,7]
[341826363,1731243049272,-151.0,0.0003,7]
[341826365,1731243049282,-151.0,0.0003,7]
[341826367,1731243049292,-265.144848,0.0003,7]
[341826369,1731243049302,-265.144854,0.0003,7]
[341826371,1731243049311,-374.99876,0.0003,7]
[341826373,1731243049320,-151.0,0.0003,7]
[341826375,1731243049330,-374.998756,0.0003,7]
[341826377,1731243049339,-151.0,0.0003,7]
[341826379,1731243049349,-151.0,0.0003,7]
[341826381,1731243049358,-830.649371,0.0003,7]
[341826383,1731243049367,-830.649365,0.0003,7]
[341826385,1731243049377,-318.42235,0.0003,7]
[341826387,1731243049386,-318.42235,0.0003,7]
[341826388,1731243049396,-318.42235,0.0003,7]
[341826390,1731243049406,-318.42235,0.0003,7]
[341826393,1731243049416,-318.42235,0.0003,7]
[341826394,1731243049427,-318.42235,0.0003,7]
[341826396,1731243049436,-151.0,0.0003,7]
[341826398,1731243049446,-151.0,0.0003,7]
[341826401,1731243049456,-151.0,0.0003,7]
[341826403,1731243049467,-268.783875,0.0003,7]
[341826404,1731243049476,-268.78387,0.0003,7]
[341826406,1731243049486,-3218.147499,0.0003,7]
[341826409,1731243049496,-3218.147499,0.0003,7]
[341826411,1731243049506,-3218.147499,0.0003,7]
[341826412,1731243049515,-3218.147499,0.0003,7]
[341826414,1731243049525,-3218.147499,0.0003,7]
[341826416,1731243049535,-3218.147499,0.0003,7]
[341826418,1731243049544,-26497.184411,0.0003,10]
[341826419,1731243049554,-225.0,0.0003,2]
[341826420,1731243049563,-384.083894,0.00030027,7]
[341826421,1731243049572,-384.083894,0.00030027,7]
[341826422,1731243049581,-151.0,0.00030027,7]
[341826423,1731243049591,-151.0,0.00030027,7]
[341826424,1731243049600,-157.40441,0.00030027,7]
[341826425,1731243049609,-3915.187411,0.00030027,7]
[341826426,1731243049618,-399.43798709,0.00030027,7]
[341826489,1731243050430,-151.0,0.00029473,7]
[341826491,1731243050440,-151.0,0.00029498,7]
[341826493,1731243050450,-151.0,0.00029498,7]
[341826495,1731243050461,-151.0,0.00029499,7]
[341826497,1731243050470,-151.0,0.00029499,7]
[341826499,1731243050479,-151.0,0.00029499,7]
[341826501,1731243050488,-151.0,0.00029499,7]
[341826503,1731243050499,-557.27021619,0.00030027,7]
[341826505,1731243050510,-2958.47920772,0.00030027,7]
[341826507,1731243050519,-1112.360434,0.00030027,7]
[341826509,1731243050529,-324.526169,0.00030027,7]
[341826512,1731243050539,-324.526169,0.00030027,7]
[341826513,1731243050549,-126.061273,0.00030027,7]
[341826516,1731243050569,-230.07531,0.00030027,7]
[341826518,1731243050579,-356.136591,0.00030027,7]
[341826520,1731243050589,-48.788099,0.00030027,7]
[341826563,1731243050992,-151.0,0.00029499,7]
[341826565,1731243051002,-161.24924,0.00029499,7]
[341826567,1731243051011,-151.099,0.00029997,2]
[341826569,1731243051021,-102.211901,0.00030027,7]
[341826571,1731243051030,-43.749859,0.00030027,7]
[341828128,1731243162859,500.0,0.000209,30]
[341828130,1731243281984,500.0,0.00027,60]
[341828132,1731243487277,520.83333333,0.00020844,2]
[341828148,1731243798542,520.83333333,0.00020844,2]
[341828150,1731243844077,160.678022,0.00013973,2]
[341828162,1731244110038,520.83333333,0.00020844,2]
[341828230,1731244232237,-158.0,0.00022,2]
[341828231,1731244232247,-384.01,0.00022,2]
[341828232,1731244232256,-520.83333333,0.00022649,2]
[341828233,1731244232268,-160.678022,0.00022759,2]
[341828234,1731244232277,-4395.38674472,0.000231,2]
[341828235,1731244232288,-1728.61325528,0.000231,2]
[341828236,1731244232298,-300.0,0.00024805,2]
[341828237,1731244232307,-300.0,0.00024805,2]
[341828238,1731244232316,-24208.0674854,0.00024806,2]
[341828239,1731244232326,-210.1073501,0.00024905,2]
[341828241,1731244232335,-166.666666,0.00024967,2]
[341828243,1731244232344,-3048.4744046,0.00025188,2]
[341828245,1731244232354,-6124.0,0.0002541,4]
[341828247,1731244232363,-202.354903,0.00025484,2]
[341828249,1731244232372,-202.354903,0.00026169,2]
[341828251,1731244232381,-194.62181936,0.00026241,2]
[341828253,1731244232390,-176.853412,0.00026519,2]
[341828255,1731244232399,-202.354903,0.00026854,2]
[341828257,1731244232408,-420.0,0.00026877,2]
[341828259,1731244232417,-420.0,0.00027286,2]
[341828261,1731244232426,-531.31664325,0.00027925,7]
[341828263,1731244232435,-1386.21425502,0.00027951,7]
[341828270,1731244232490,-455.8688184,0.00027951,7]
[341828272,1731244232501,-318.932719,0.00027951,7]
[341828383,1731244238305,-520.83333333,0.000231,2]
[341828385,1731244238315,-577.54397923,0.0002541,2]
[341828387,1731244238325,-241.16172072,0.00027951,7]
[341828390,1731244238336,-3480.8183152,0.00027951,7]
[341828392,1731244238347,-241.00417166,0.00027951,7]
[341828394,1731244238357,-289.98224814,0.00027981,2]
[341828401,1731244238420,-185.31939691,0.00027981,2]
[341828403,1731244238429,-188.8225235,0.00028106,2]
[341828405,1731244238438,-269.64799212,0.00028767,2]
[341828407,1731244238447,-1503.69253962,0.00029,5]
[341828409,1731244238456,-587.0,0.00029123,2]
[341828411,1731244238465,-5223.97,0.00029195,10]
[341828413,1731244238475,-4353.31,0.00029195,10]
[341828415,1731244238484,-3627.76,0.00029195,10]
[341828417,1731244238493,-150.112233,0.000292,12]
[341828419,1731244238503,-150.112233,0.000292,16]
[341828421,1731244238514,-179.23020476,0.00029204,2]
[341828424,1731244238523,-500.0,0.00029204,2]
[341828427,1731244238533,-235.51148591,0.00029204,2]
[341828430,1731244238542,-553.81019233,0.00029204,2]
[341828432,1731244238551,-500.0,0.00029204,2]
[341828434,1731244238560,-308.93963659,0.00029204,2]
[341828436,1731244238569,-500.0,0.00029204,2]
[341828438,1731244238577,-399.8667829,0.00029204,2]
[341828440,1731244238587,-500.0,0.00029204,2]
[341828442,1731244238595,-500.0,0.00029204,2]
[341828444,1731244238605,-428.19308208,0.00029204,2]
[341828446,1731244238614,-500.0,0.00029204,2]
[341828449,1731244238623,-500.0,0.00029204,2]
[341828451,1731244238632,-500.0,0.00029204,2]
[341828452,1731244238641,-304609.49980302,0.00029205,2]
[341828454,1731244238650,-154.321,0.0002926,2]
[341828456,1731244238659,-500.0,0.00029273,5]
[341828459,1731244238669,-504.5936068,0.00029273,5]
[341828461,1731244238678,-500.0,0.00029273,2]
[341828463,1731244238687,-500.0,0.00029273,5]
[341828465,1731244238697,-500.0,0.00029273,5]
[341828467,1731244238707,-11962.2221094,0.000293,7]
[341828469,1731244238716,-150.112233,0.000293,17]
[341828471,1731244238725,-150.112233,0.000293,17]
[341828473,1731244238734,-150.112233,0.000293,19]
[341828475,1731244238743,-150.112233,0.000293,11]
[341828477,1731244238752,-160.0,0.00029309,3]
[341828479,1731244238762,-170.156895,0.00029322,2]
[341828481,1731244238776,-224.279347,0.00029322,2]
[341828483,1731244238785,-179.713979,0.00029322,2]
[341828485,1731244238794,-214.797342,0.00029322,2]
[341828487,1731244238802,-213.220108,0.00029322,2]
[341828489,1731244238812,-350.922856,0.00029322,2]
[341828491,1731244238821,-465.51508225,0.00029381,2]
[341828493,1731244238830,-1000.0,0.000294,2]
[341828495,1731244238840,-14189.09032934,0.000294,3]
[341828497,1731244238849,-224.0,0.000294,7]
[341828514,1731244238993,-152.98556512,0.000294,7]
[341828516,1731244239004,-152.98556512,0.000294,7]
[341828518,1731244239014,-152.98556512,0.000294,7]
[341828520,1731244239023,-152.98556512,0.000294,7]
[341828522,1731244239032,-152.98556512,0.000294,7]
[341828524,1731244239041,-152.98556512,0.000294,7]
[341828526,1731244239051,-152.98556512,0.000294,7]
[341828528,1731244239060,-152.98556512,0.000294,7]
[341828530,1731244239070,-152.98,0.000294,7]
[341828532,1731244239079,-158.86962532,0.000294,7]
[341828534,1731244239089,-158.86962532,0.000294,7]
[341828536,1731244239098,-158.86962532,0.000294,7]
[341828538,1731244239108,-158.86962532,0.000294,7]
[341828540,1731244239117,-158.86962532,0.000294,7]
[341828542,1731244239127,-158.86962532,0.000294,7]
[341828544,1731244239137,-158.86962532,0.000294,7]
[341828546,1731244239146,-158.86962532,0.000294,7]
[341828548,1731244239155,-158.86962532,0.000294,7]
[341828550,1731244239164,-158.86962532,0.000294,7]
[341828552,1731244239173,-158.86962532,0.000294,7]
[341828554,1731244239183,-158.86962532,0.000294,7]
[341828556,1731244239192,-158.86,0.000294,7]
[341828558,1731244239201,-150.112233,0.000294,19]
[341828560,1731244239210,-150.112233,0.000294,15]
[341828562,1731244239219,-150.112233,0.000294,18]
[341828564,1731244239228,-243.43698798,0.0002944,2]
[341828566,1731244239238,-500.0,0.00029473,5]
[341828568,1731244239247,-579.9455461,0.00029473,5]
[341828570,1731244239256,-239.26750131,0.00029473,5]
[341828572,1731244239266,-500.0,0.00029473,5]
[341828574,1731244239275,-500.0,0.00029473,5]
[341828576,1731244239284,-151.0,0.00029473,7]
[341828578,1731244239293,-234.53,0.00029489,3]
[341828580,1731244239302,-703.59,0.00029489,3]
[341828582,1731244239311,-183.37,0.00029489,3]
[341828584,1731244239320,-610.75,0.00029497,2]